fUSD/lending_fUSD_20241227
["ID","MTS","AMOUNT","RATE_DAILY","PERIOD"]
[346845916,1735321842511,-504.89,0.00010553,2]
[346845917,1735321842520,-500.0,0.00010553,2]
[346845918,1735321842528,-501.83736975,0.00010553,2]
[346845919,1735321842537,-659.48,0.00010553,2]
[346845920,1735321842546,-500.0,0.00010553,2]
[346845921,1735321842554,-1451.97,0.00010553,2]
[346845922,1735321842564,-195.03562338,0.00010553,2]
[346845923,1735321842572,-500.0,0.00010553,2]
[346845924,1735321842581,-1173.87,0.00010553,2]
[346845925,1735321842590,-500.0,0.00010553,2]
[346845926,1735321842599,-1268.24,0.00010553,2]
[346845927,1735321842608,-500.0,0.00010553,2]
[346845928,1735321842616,-500.0,0.00010553,2]
[346845929,1735321842625,-500.0,0.00010553,2]
[346845930,1735321842633,-500.0,0.00010553,2]
[346845931,1735321842642,-500.0,0.00010553,2]
[346845932,1735321842651,-500.0,0.00010553,2]
[346845933,1735321842660,-500.0,0.00010553,2]
[346845934,1735321842668,-502.82431634,0.00010553,2]
[346845935,1735321842677,-500.0,0.00010553,2]
[346845936,1735321842686,-500.0,0.00010553,2]
[346845937,1735321842695,-500.0,0.00010553,2]
[346845938,1735321842703,-573.75,0.00010553,2]
[346845939,1735321842712,-816.35,0.00010553,2]
[346845940,1735321842721,-500.0,0.00010553,2]
[346845941,1735321842730,-500.0,0.00010553,2]
[346845942,1735321842739,-500.0,0.00010553,2]
[346845943,1735321842747,-500.0,0.00010553,2]
[346845944,1735321842759,-500.0,0.00010553,2]
[346845945,1735321842767,-500.0,0.00010553,2]
[346845946,1735321842777,-618.62,0.00010553,2]
[346845947,1735321842786,-1779.47,0.00010553,2]
[346845948,1735321842795,-896.01,0.00010553,2]
[346845949,1735321842804,-753.65,0.00010553,2]
[346845950,1735321842813,-500.0,0.00010553,2]
[346845951,1735321842822,-546.12042249,0.00010553,2]
[346845952,1735321842832,-501.23677875,0.00010553,2]
[346845953,1735321842841,-500.0,0.00010553,2]
[346845954,1735321842851,-1017.36,0.00010553,2]
[346845955,1735321842860,-500.0,0.00010553,2]
[346845956,1735321842870,-500.0,0.00010553,2]
[346845957,1735321842879,-556.83,0.00010553,2]
[346845958,1735321842889,-500.0,0.00010553,2]
[346845959,1735321842898,-531.21,0.00010553,2]
[346845960,1735321842907,-586.24654442,0.00010553,2]
[346845961,1735321842916,-563.09,0.00010553,2]
[346845962,1735321842925,-500.0,0.00010553,2]
[346845963,1735321842935,-500.0,0.00010553,2]
[346845964,1735321842944,-500.59908688,0.00010553,2]
[346845965,1735321842953,-500.0,0.00010553,2]
[346845966,1735321842961,-500.0,0.00010553,2]
[346845967,1735321842970,-500.0,0.00010553,2]
[346845968,1735321842979,-500.0,0.00010553,2]
[346845969,1735321842988,-500.0,0.00010553,2]
[346845970,1735321842996,-8458.77,0.00010553,2]
[346845971,1735321843007,-630.01,0.00010553,2]
[346845972,1735321843016,-532.27,0.00010553,2]
[346845973,1735321843025,-500.0,0.00010553,2]
[346845974,1735321843034,-1445.57,0.00010553,2]
[346845975,1735321843043,-2418.15,0.00010553,2]
[346845976,1735321843052,-500.0,0.00010553,2]
[346845977,1735321843061,-500.0,0.00010553,2]
[346845978,1735321843069,-1565.83,0.00010553,2]
[346845979,1735321843078,-500.0,0.00010553,2]
[346845980,1735321843087,-586.5,0.00010553,2]
[346845981,1735321843096,-1605.59,0.00010553,2]
[346845982,1735321843105,-500.0,0.00010553,2]
[346845983,1735321843114,-500.0,0.00010553,2]
[346845984,1735321843123,-500.0,0.00010553,2]
[346845985,1735321843132,-500.0,0.00010553,2]
[346845986,1735321843141,-500.0,0.00010553,2]
[346845987,1735321843150,-783.29,0.00010553,2]
[346845989,1735321843159,-1476.51,0.00010553,2]
[346845991,1735321843169,-500.0,0.00010553,2]
[346845993,1735321843178,-500.0,0.00010553,2]
[346845994,1735321843187,-2183.79,0.00010553,2]
[346845995,1735321843196,-500.0,0.00010553,2]
[346845996,1735321843204,-560.08,0.00010553,2]
[346845997,1735321843213,-500.0,0.00010553,2]
[346845998,1735321843222,-500.0,0.00010553,2]
[346845999,1735321843231,-636.52,0.00010553,2]
[346846000,1735321843242,-794.67,0.00010553,2]
[346846001,1735321843251,-1844.53,0.00010553,2]
[346846002,1735321843265,-500.0,0.00010553,2]
[346846003,1735321843275,-535.49,0.00010553,2]
[346846004,1735321843283,-258.43622507,0.00010553,2]
[346846005,1735321843292,-1211.61,0.00010553,2]
[346846006,1735321843301,-500.0,0.00010553,2]
[346846007,1735321843312,-500.0,0.00010553,2]
[346846008,1735321843321,-500.0,0.00010553,2]
[346846009,1735321843330,-1731.28,0.00010553,2]
[346846010,1735321843339,-500.0,0.00010553,2]
[346846011,1735321843348,-1795.32,0.00010553,2]
[346846012,1735321843358,-500.0,0.00010553,2]
[346846013,1735321843368,-1240.81,0.00010553,2]
[346846014,1735321843377,-500.0,0.00010553,2]
[346846015,1735321843386,-1377.85,0.00010553,2]
[346846016,1735321843395,-500.0,0.00010553,2]
[346846017,1735321843404,-500.0,0.00010553,2]
[346846019,1735321843414,-1397.45,0.00010553,2]
[346846021,1735321843423,-500.0,0.00010553,2]
[346846023,1735321843432,-1580.74,0.00010553,2]
[346846025,1735321843441,-500.0,0.00010553,2]
[346846027,1735321843451,-500.0,0.00010553,2]
[346846028,1735321843460,-500.0,0.00010553,2]
[346846030,1735321843469,-500.0,0.00010553,2]
[346846032,1735321843478,-989.3,0.00010553,2]
[346846034,1735321843488,-500.0,0.00010553,2]
[346846036,1735321843497,-500.0,0.00010553,2]
[346846038,1735321843508,-500.0,0.00010553,2]
[346846040,1735321843518,-500.0,0.00010553,2]
[346846042,1735321843527,-523.38,0.00010553,2]
[346846044,1735321843537,-500.0,0.00010553,2]
[346846046,1735321843547,-500.0,0.00010554,2]
[346846048,1735321843555,-571.83,0.00010554,2]
[346846049,1735321843565,-500.0,0.00010554,2]
[346846050,1735321843574,-500.0,0.00010554,2]
[346846051,1735321843583,-500.0,0.00010554,2]
[346846052,1735321843592,-500.0,0.00010554,2]
[346846053,1735321843602,-500.0,0.00010554,2]
[346846054,1735321843611,-500.0,0.00010554,2]
[346846055,1735321843620,-500.0,0.00010554,2]
[346846056,1735321843629,-515.28,0.00010554,2]
[346846057,1735321843638,-500.0,0.00010554,2]
[346846058,1735321843647,-500.0,0.00010554,2]
[346846059,1735321843656,-500.0,0.00010554,2]
[346846060,1735321843666,-500.0,0.00010554,2]
[346846061,1735321843676,-500.0,0.00010554,2]
[346846062,1735321843685,-500.0,0.00010554,2]
[346846063,1735321843694,-500.0,0.00010554,2]
[346846064,1735321843703,-500.0,0.00010554,2]
[346846065,1735321843713,-569.36,0.00010554,2]
[346846066,1735321843722,-500.0,0.00010554,2]
[346846067,1735321843732,-500.0,0.00010554,2]
[346846068,1735321843741,-507.85,0.00010554,2]
[346846069,1735321843750,-83.46879665,0.00010554,2]
[346846070,1735321843795,-337.31441769,0.00010554,2]
[346846071,1735321843814,-79.21678566,0.00010554,2]
[346846073,1735321843823,-500.0,0.00010554,2]
[346846075,1735321843833,-500.0,0.00010554,2]
[346846076,1735321843842,-500.0,0.00010554,2]
[346846077,1735321843852,-500.0,0.00010554,2]
[346846078,1735321843862,-567.59,0.00010554,2]
[346846079,1735321843871,-500.0,0.00010554,2]
[346846081,1735321843881,-500.0,0.00010554,2]
[346846082,1735321843891,-12.72390498,0.00010554,2]
[346846083,1735321843902,-487.27609502,0.00010554,2]
[346846084,1735321843912,-500.0,0.00010554,2]
[346846085,1735321843922,-500.0,0.00010554,2]
[346846086,1735321843931,-508.95,0.00010554,2]
[346846087,1735321843941,-500.0,0.00010554,2]
[346846088,1735321843950,-643.61,0.00010554,2]
[346846089,1735321843960,-153.74390498,0.00010554,2]
[346846090,1735321843971,-346.25609502,0.00010554,2]
[346846091,1735321843980,-24.66390497,0.00010554,2]
[346846092,1735321843993,-695.35,0.00010554,2]
[346846093,1735321844037,-500.0,0.00010553,2]
[346846094,1735321844047,-75.50609503,0.00010554,2]
[346846095,1735321844059,-500.0,0.00010554,2]
[346846096,1735321844068,-500.0,0.00010554,2]
[346846097,1735321844078,-500.0,0.00010554,2]
[346846098,1735321844087,-500.0,0.00010554,2]
[346846099,1735321844096,-500.0,0.00010554,2]
[346846100,1735321844106,-64.64390498,0.00010554,2]
[346846101,1735321844118,-435.35609502,0.00010554,2]
[346846102,1735321844127,-500.0,0.00010554,2]
[346846103,1735321844137,-500.0,0.00010554,2]
[346846104,1735321844147,-648.79,0.00010554,2]
[346846105,1735321844157,-747.79,0.00010554,2]
[346846106,1735321844166,-532.76,0.00010554,2]
[346846107,1735321844175,-500.0,0.00010554,2]
[346846108,1735321844184,-500.0,0.00010554,2]
[346846109,1735321844193,-500.0,0.00010554,2]
[346846110,1735321844202,-508.88335829,0.00010554,2]
[346846111,1735321844211,-500.0,0.00010554,2]
[346846112,1735321844220,-500.0,0.00010554,2]
[346846113,1735321844229,-500.0,0.00010554,2]
[346846114,1735321844242,-500.0,0.00010554,2]
[346846115,1735321844251,-666.84,0.00010554,2]
[346846116,1735321844262,-500.0,0.00010554,2]
[346846117,1735321844271,-500.0,0.00010554,2]
[346846118,1735321844280,-375.22654669,0.00010554,2]
[346846119,1735321845271,-500.0,0.00010553,2]
[346846120,1735321845282,-500.0,0.00010553,2]
[346846121,1735321845293,-124.77345331,0.00010554,2]
[346846122,1735321845303,-500.0,0.00010554,2]
[346846123,1735321845313,-594.00915833,0.00010554,2]
[346846124,1735321845323,-504.46193109,0.00010554,2]
[346846125,1735321845333,-500.0,0.00010554,2]
[346846126,1735321845342,-500.0,0.00010554,2]
[346846127,1735321845352,-581.63,0.00010554,2]
[346846128,1735321845362,-557.20748504,0.00010554,2]
[346846129,1735321845371,-255.04690469,0.00010554,2]
[346846130,1735321845382,-660.67,0.00010554,2]
[346846131,1735321845391,-500.0,0.00010554,2]
[346846132,1735321845401,-504.52547222,0.00010554,2]
[346846133,1735321845411,-500.0,0.00010554,2]
[346846134,1735321845421,-500.0,0.00010554,2]
[346846135,1735321845431,-500.0,0.00010554,2]
[346846136,1735321845441,-500.0,0.00010554,2]
[346846137,1735321845450,-243.49961807,0.00010554,2]
[346846138,1735321845469,-256.50038193,0.00010554,2]
[346846139,1735321845479,-500.0,0.00010554,2]
[346846140,1735321845488,-186.03476657,0.00010554,2]
[346846141,1735321845500,-313.96523343,0.00010554,2]
[346846142,1735321845512,-901.96,0.00010554,2]
[346846143,1735321845522,-500.0,0.00010554,2]
[346846144,1735321845532,-500.0,0.00010554,2]
[346846145,1735321845542,-508.02967284,0.00010554,2]
[346846146,1735321845551,-500.0,0.00010554,2]
[346846147,1735321845561,-500.0,0.00010554,2]
[346846148,1735321845570,-541.46,0.00010554,2]
[346846149,1735321845580,-672.98,0.00010554,2]
[346846150,1735321845589,-500.0,0.00010554,2]
[346846151,1735321845599,-500.0,0.00010554,2]
[346846152,1735321845608,-500.0,0.00010554,2]
[346846153,1735321845617,-500.0,0.00010554,2]
[346846154,1735321845626,-500.0,0.00010554,2]
[346846155,1735321845635,-500.0,0.00010554,2]
[346846156,1735321845645,-500.0,0.00010554,2]
[346846157,1735321845655,-500.0,0.00010554,2]
[346846158,1735321845664,-502.90831364,0.00010554,2]
[346846159,1735321845674,-500.0,0.00010554,2]
[346846160,1735321845684,-500.0,0.00010554,2]
[346846161,1735321845694,-500.0,0.00010554,2]
[346846162,1735321845703,-500.0,0.00010554,2]
[346846163,1735321845712,-500.0,0.00010554,2]
[346846164,1735321845722,-643.53,0.00010554,2]
[346846165,1735321845731,-512.0522238,0.00010554,2]
[346846166,1735321845741,-500.0,0.00010554,2]
[346846167,1735321845751,-500.0,0.00010554,2]
[346846168,1735321845762,-695.23,0.00010554,2]
[346846169,1735321845771,-500.0,0.00010554,2]
[346846170,1735321845781,-500.0,0.00010554,2]
[346846171,1735321845790,-500.0,0.00010554,2]
[346846172,1735321845799,-514.11,0.00010554,2]
[346846173,1735321845809,-835.0,0.00010554,2]
[346846174,1735321845818,-501.23148743,0.00010554,2]
[346846175,1735321845827,-500.0,0.00010554,2]
[346846176,1735321845836,-500.0,0.00010554,2]
[346846177,1735321845845,-574.61,0.00010554,2]
[346846178,1735321845855,-500.0,0.00010554,2]
[346846179,1735321845864,-500.0,0.00010554,2]
[346846180,1735321845873,-500.0,0.00010554,2]
[346846181,1735321845882,-625.34,0.00010554,2]
[346846182,1735321845890,-593.72,0.00010554,2]
[346846183,1735321845898,-500.0,0.00010554,2]
[346846184,1735321845904,-1118.42,0.00010554,2]
[346846185,1735321845911,-500.0,0.00010554,2]
[346846186,1735321845918,-500.0,0.00010554,2]
[346846187,1735321845926,-772.58,0.00010554,2]
[346846188,1735321845934,-500.0,0.00010554,2]
[346846189,1735321845942,-500.0,0.00010554,2]
[346846190,1735321845951,-616.5,0.00010554,2]
[346846191,1735321845960,-500.0,0.00010554,2]
[346846192,1735321845968,-500.0,0.00010554,2]
[346846193,1735321845978,-758.5,0.00010554,2]
[346846194,1735321845987,-503.89257937,0.00010554,2]
[346846195,1735321845996,-500.0,0.00010554,2]
[346846196,1735321846006,-505.26012694,0.00010554,2]
[346846197,1735321846017,-500.0,0.00010554,2]
[346846198,1735321846027,-500.0,0.00010554,2]
[346846199,1735321846036,-596.62,0.00010554,2]
[346846200,1735321846046,-500.0,0.00010554,2]
[346846201,1735321846055,-500.0,0.00010554,2]
[346846202,1735321846063,-500.0,0.00010554,2]
[346846203,1735321846071,-500.0,0.00010554,2]
[346846204,1735321846080,-764.21,0.00010554,2]
[346846205,1735321846089,-500.0,0.00010554,2]
[346846206,1735321846097,-502.35286265,0.00010554,2]
[346846207,1735321846107,-525.11,0.00010554,2]
[346846208,1735321846118,-500.0,0.00010554,2]
[346846209,1735321846126,-571.7,0.00010554,2]
[346846210,1735321846135,-500.0,0.00010554,2]
[346846211,1735321846143,-579.82,0.00010554,2]
[346846212,1735321846152,-500.0,0.00010554,2]
[346846213,1735321846162,-779.62,0.00010554,2]
[346846214,1735321846172,-666.69,0.00010554,2]
[346846215,1735321846182,-584.29,0.00010554,2]
[346846216,1735321846194,-502.11829697,0.00010554,2]
[346846217,1735321846204,-1751.76,0.00010554,2]
[346846218,1735321846213,-501.68771776,0.00010554,2]
[346846219,1735321846223,-553.0,0.00010554,2]
[346846220,1735321846234,-673.05,0.00010554,2]
[346846221,1735321846246,-816.21,0.00010554,2]
[346846222,1735321846256,-506.67335352,0.00010554,2]
[346846223,1735321846267,-500.0,0.00010554,2]
[346846224,1735321846277,-1105.72,0.00010554,2]
[346846225,1735321846286,-500.0,0.00010554,2]
[346846226,1735321846296,-500.0,0.00010554,2]
[346846227,1735321846306,-500.0,0.00010554,2]
[346846228,1735321846316,-504.38383803,0.00010554,2]
[346846229,1735321846325,-500.0,0.00010554,2]
[346846230,1735321846334,-1536.54,0.00010554,2]
[346846231,1735321846343,-500.0,0.00010554,2]
[346846232,1735321846352,-500.0,0.00010554,2]
[346846233,1735321846361,-710.83,0.00010554,2]
[346846234,1735321846371,-500.0,0.00010554,2]
[346846235,1735321846380,-500.0,0.00010554,2]
[346846236,1735321846389,-504.0284643,0.00010554,2]
[346846237,1735321846398,-500.0,0.00010554,2]
[346846238,1735321846407,-192.87281777,0.00010554,2]
[346846239,1735321846416,-500.0,0.00010554,2]
[346846240,1735321846425,-500.46608951,0.00010554,2]
[346846241,1735321846434,-500.0,0.00010554,2]
[346846242,1735321846443,-503.75862178,0.00010554,2]
[346846243,1735321846453,-500.0,0.00010554,2]
[346846244,1735321846462,-500.0,0.00010554,2]
[346846245,1735321846472,-502.66960481,0.00010554,2]
[346846246,1735321846481,-1541.07,0.00010554,2]
[346846247,1735321846491,-500.0,0.00010554,2]
[346846248,1735321846500,-500.0,0.00010554,2]
[346846249,1735321846511,-919.89,0.00010554,2]
[346846250,1735321846521,-500.0,0.00010554,2]
[346846251,1735321846531,-1124.64,0.00010554,2]
[346846252,1735321846541,-500.0,0.00010554,2]
[346846253,1735321846550,-787.56,0.00010554,2]
[346846254,1735321846560,-500.0,0.00010554,2]
[346846255,1735321846569,-500.0,0.00010554,2]
[346846256,1735321846578,-551.12,0.00010554,2]
[346846257,1735321846588,-924.97,0.00010554,2]
[346846258,1735321846597,-951.91,0.00010554,2]
[346846259,1735321846606,-507.08724629,0.00010554,2]
[346846260,1735321846616,-500.0,0.00010554,2]
[346846261,1735321846625,-1032.89,0.00010554,2]
[346846262,1735321846634,-500.0,0.00010554,2]
[346846263,1735321846644,-500.0,0.00010554,2]
[346846264,1735321846654,-500.0,0.00010554,2]
[346846265,1735321846663,-500.0,0.00010554,2]
[346846266,1735321846673,-1282.28,0.00010554,2]
[346846267,1735321846683,-1571.47,0.00010554,2]
[346846268,1735321846692,-718.63,0.00010554,2]
[346846269,1735321846702,-510.10852904,0.00010554,2]
[346846270,1735321846711,-701.35,0.00010554,2]
[346846271,1735321846721,-3838.03,0.00010554,2]
[346846272,1735321846731,-500.0,0.00010554,2]
[346846273,1735321846741,-500.0,0.00010554,2]
[346846274,1735321846750,-555.92,0.00010554,2]
[346846275,1735321846761,-539.85,0.00010554,2]
[346846276,1735321846771,-620.9,0.00010554,2]
[346846277,1735321846780,-500.0,0.00010554,2]
[346846278,1735321846790,-469.79291055,0.00010554,2]
[346846279,1735321846823,-30.20708945,0.00010554,2]
[346846280,1735321846832,-500.0,0.00010554,2]
[346846281,1735321846841,-500.0,0.00010554,2]
[346846282,1735321846851,-500.0,0.00010554,2]
[346846283,1735321846860,-1099.87405192,0.00010554,2]
[346846284,1735321846873,-1340.87594808,0.00010554,2]
[346846285,1735321846882,-660.92,0.00010554,2]
[346846286,1735321846892,-500.0,0.00010554,2]
[346846287,1735321846901,-500.0,0.00010554,2]
[346846288,1735321846910,-500.0,0.00010554,2]
[346846289,1735321846920,-630.13,0.00010554,2]
[346846290,1735321846929,-905.52,0.00010554,2]
[346846291,1735321846938,-500.0,0.00010554,2]
[346846292,1735321846948,-708.64,0.00010554,2]
[346846293,1735321846957,-500.33,0.00010554,2]
[346846294,1735321846967,-668.1,0.00010554,2]
[346846295,1735321846976,-500.0,0.00010554,2]
[346846296,1735321846985,-500.0,0.00010554,2]
[346846297,1735321846995,-10057.25,0.00010554,2]
[346846298,1735321847005,-538.08785116,0.00010554,2]
[346846299,1735321847016,-534.96920076,0.00010554,2]
[346846300,1735321847033,-383.64079924,0.00010554,2]
[346846301,1735321847043,-500.0,0.00010554,2]
[346846302,1735321847052,-60.84649362,0.00010554,2]
[346846303,1735321847063,-439.15350638,0.00010554,2]
[346846304,1735321847072,-500.0,0.00010554,2]
[346846305,1735321847081,-254.77754376,0.00010554,2]
[346846306,1735321847091,-500.0,0.00010554,2]
[346846307,1735321847100,-500.0,0.00010554,2]
[346846308,1735321847110,-1611.74,0.00010554,2]
[346846309,1735321847119,-500.0,0.00010554,2]
[346846310,1735321847129,-500.0,0.00010554,2]
[346846311,1735321847138,-500.0,0.00010554,2]
[346846312,1735321847147,-500.0,0.00010554,2]
[346846313,1735321847156,-1161.33,0.00010554,2]
[346846314,1735321847165,-505.13954743,0.00010554,2]
[346846315,1735321847175,-710.35,0.00010554,2]
[346846316,1735321847184,-500.0,0.00010554,2]
[346846317,1735321847194,-500.0,0.00010554,2]
[346846318,1735321847203,-6403.8,0.00010554,2]
[346846319,1735321847212,-500.0,0.00010554,2]
[346846320,1735321847222,-601.09,0.00010554,2]
[346846321,1735321847231,-500.0,0.00010554,2]
[346846322,1735321847244,-1683.76,0.00010554,2]
[346846323,1735321847254,-500.0,0.00010554,2]
[346846324,1735321847264,-500.0,0.00010554,2]
[346846325,1735321847274,-500.0,0.00010554,2]
[346846326,1735321847284,-500.0,0.00010554,2]
[346846327,1735321847294,-500.0,0.00010554,2]
[346846328,1735321847304,-500.0,0.00010554,2]
[346846329,1735321847314,-500.0,0.00010554,2]
[346846330,1735321847323,-500.0,0.00010554,2]
[346846331,1735321847333,-500.0,0.00010554,2]
[346846332,1735321847343,-500.0,0.00010554,2]
[346846333,1735321847352,-503.22492874,0.00010554,2]
[346846334,1735321847362,-500.2025569,0.00010554,2]
[346846335,1735321847371,-500.84255623,0.00010554,2]
[346846336,1735321847380,-500.0,0.00010554,2]
[346846337,1735321847389,-1119.76,0.00010554,2]
[346846338,1735321847399,-832.37,0.00010554,2]
[346846339,1735321847410,-680.5,0.00010554,2]
[346846340,1735321847420,-500.0,0.00010554,2]
[346846341,1735321847429,-500.0,0.00010554,2]
[346846342,1735321847439,-500.0,0.00010554,2]
[346846343,1735321847453,-500.0,0.00010554,2]
[346846344,1735321847467,-595.91,0.00010554,2]
[346846345,1735321847477,-500.0,0.00010554,2]
[346846346,1735321847487,-500.0,0.00010554,2]
[346846347,1735321847496,-836.91,0.00010554,2]
[346846348,1735321847506,-500.0,0.00010554,2]
[346846349,1735321847517,-500.0,0.00010554,2]
[346846350,1735321847527,-730.84,0.00010554,2]
[346846351,1735321847536,-831.85,0.00010554,2]
[346846352,1735321847545,-500.0,0.00010554,2]
[346846353,1735321847555,-3038.52,0.00010554,2]
[346846354,1735321847564,-718.62,0.00010554,2]
[346846355,1735321847573,-790.9,0.00010554,2]
[346846356,1735321847583,-500.0,0.00010554,2]
[346846357,1735321847592,-500.0,0.00010554,2]
[346846358,1735321847601,-1424.29,0.00010554,2]
[346846359,1735321847610,-500.0,0.00010554,2]
[346846360,1735321847620,-500.0,0.00010554,2]
[346846361,1735321847629,-500.0,0.00010554,2]
[346846362,1735321847638,-500.0,0.00010554,2]
[346846363,1735321847648,-1237.07,0.00010554,2]
[346846364,1735321847657,-500.0,0.00010554,2]
[346846365,1735321847666,-500.0,0.00010554,2]
[346846366,1735321847675,-500.0,0.00010554,2]
[346846367,1735321847684,-503.24639597,0.00010554,2]
[346846368,1735321847693,-500.0,0.00010554,2]
[346846370,1735321847703,-500.0,0.00010554,2]
[346846371,1735321847712,-500.0,0.00010554,2]
[346846372,1735321847721,-1697.69,0.00010554,2]
[346846373,1735321847730,-500.0,0.00010554,2]
[346846374,1735321847740,-17115.41,0.00010554,2]
[346846375,1735321847749,-530.36,0.00010554,2]
[346846376,1735321847759,-500.0,0.00010554,2]
[346846377,1735321847769,-1573.83,0.00010554,2]
[346846378,1735321847778,-500.0,0.00010554,2]
[346846379,1735321847787,-183.8347437,0.00010554,2]
[346846380,1735321847796,-500.0,0.00010554,2]
[346846381,1735321847806,-500.0,0.00010554,2]
[346846382,1735321847815,-1675.9,0.00010554,2]
[346846383,1735321847824,-500.0,0.00010554,2]
[346846384,1735321847833,-500.0,0.00010554,2]
[346846386,1735321847842,-500.0,0.00010554,2]
[346846387,1735321847851,-87.57133735,0.00010554,2]
[346846388,1735321848371,-690.23,0.00010552,2]
[346846389,1735321848381,-1686.68,0.00010553,2]
[346846390,1735321848390,-412.42866265,0.00010554,2]
[346846391,1735321848400,-500.0,0.00010554,2]
[346846392,1735321848410,-500.0,0.00010554,2]
[346846393,1735321848419,-500.0,0.00010554,2]
[346846394,1735321848429,-500.0,0.00010554,2]
[346846395,1735321848438,-500.0,0.00010554,2]
[346846396,1735321848447,-1273.04,0.00010554,2]
[346846397,1735321848457,-500.0,0.00010554,2]
[346846398,1735321848466,-500.0,0.00010554,2]
[346846399,1735321848476,-712.27,0.00010554,2]
[346846400,1735321848485,-579.65,0.00010554,2]
[346846401,1735321848494,-1224.08,0.00010554,2]
[346846402,1735321848503,-500.0,0.00010554,2]
[346846403,1735321848513,-500.0,0.00010554,2]
[346846404,1735321848522,-500.0,0.00010554,2]
[346846405,1735321848532,-500.0,0.00010554,2]
[346846406,1735321848541,-500.0,0.00010554,2]
[346846407,1735321848550,-909.31,0.00010554,2]
[346846408,1735321848559,-500.0,0.00010554,2]
[346846409,1735321848568,-922.56,0.00010554,2]
[346846410,1735321848578,-500.0,0.00010554,2]
[346846411,1735321848588,-500.0,0.00010554,2]
[346846412,1735321848597,-500.0,0.00010554,2]
[346846413,1735321848607,-500.0,0.00010554,2]
[346846414,1735321848616,-683.83,0.00010554,2]
[346846415,1735321848626,-626.46,0.00010554,2]
[346846416,1735321848635,-500.0,0.00010554,2]
[346846417,1735321848644,-368.10397229,0.00010554,2]
[346846418,1735321848654,-712.19,0.00010554,2]
[346846419,1735321848663,-500.0,0.00010554,2]
[346846420,1735321848672,-530.26,0.00010554,2]
[346846421,1735321848682,-2111.32,0.00010554,2]
[346846422,1735321848691,-500.0,0.00010554,2]
[346846423,1735321848701,-500.0,0.00010554,2]
[346846424,1735321848711,-500.0,0.00010554,2]
[346846425,1735321848720,-604.38,0.00010554,2]
[346846426,1735321848731,-500.0,0.00010554,2]
[346846427,1735321848741,-324.32435904,0.00010554,2]
[346846428,1735321848752,-588.86158693,0.00010554,2]
[346846429,1735321848763,-500.0,0.00010554,2]
[346846430,1735321848773,-500.0,0.00010554,2]
[346846431,1735321848783,-500.0,0.00010554,2]
[346846432,1735321848793,-449.24144614,0.00010554,2]
[346846433,1735321848803,-221.41113679,0.00010554,2]
[346846434,1735321848812,-500.0,0.00010554,2]
[346846435,1735321848822,-500.0,0.00010554,2]
[346846436,1735321848832,-500.0,0.00010554,2]
[346846437,1735321848841,-500.0,0.00010554,2]
[346846438,1735321848852,-500.0,0.00010554,2]